bitfinex/quotes_BTCUSD_20220731
["timestamp","ask_amount","ask_price","bid_price","bid_amount"]
[1659248024260,0.09934143,23731.0,23730.0,0.00028449]
[1659248025184,0.09934143,23731.0,23727.0,0.210644]
[1659248025403,0.17734143,23731.0,23728.0,0.02052663]
[1659248025918,0.09934143,23731.0,23727.0,0.210644]
[1659248026791,0.50659876,23731.0,23724.0,0.996334]
[1659248027022,1.38159876,23731.0,23724.0,1.55893333]
[1659248027248,1.38159876,23731.0,23724.0,1.50893333]
[1659248027469,1.42959876,23731.0,23724.0,1.50893333]
[1659248027908,1.42959876,23731.0,23724.0,1.55893333]
[1659248028135,1.42959876,23731.0,23725.0,0.3]
[1659248028591,1.38159876,23731.0,23725.0,0.3]
[1659248028839,1.38159876,23731.0,23725.0,0.35]
[1659248029283,1.42959876,23731.0,23725.0,0.35]
[1659248029520,1.42959876,23731.0,23725.0,0.3]
[1659248030622,1.38159876,23731.0,23725.0,0.3]
[1659248031270,1.42959876,23731.0,23725.0,0.3]
[1659248031934,1.42959876,23731.0,23725.0,0.35]
[1659248032830,1.38159876,23731.0,23725.0,0.35]
[1659248033282,1.42959876,23731.0,23726.0,0.210654]
[1659248034606,0.42324876,23731.0,23726.0,0.210654]
[1659248034836,0.22765572,23732.0,23727.0,0.71157433]
[1659248035068,0.22765572,23732.0,23726.0,0.58922427]
[1659248035069,0.22765572,23732.0,23730.0,0.105303]
[1659248035289,0.22765572,23732.0,23731.0,0.210611]
[1659248035732,0.22765572,23732.0,23731.0,0.514928]
[1659248035955,0.22765572,23732.0,23731.0,1.336116]
[1659248036192,0.22765572,23732.0,23731.0,1.25664263]
[1659248037344,0.22765572,23732.0,23731.0,1.314116]
[1659248037633,0.22765572,23732.0,23731.0,1.08032563]
[1659248037842,0.22765572,23732.0,23731.0,1.009799]
[1659248038077,0.22765572,23732.0,23731.0,1.314116]
[1659248038712,0.22765572,23732.0,23731.0,1.25664263]
[1659248039371,0.22765572,23732.0,23731.0,1.03032563]
[1659248040081,0.22765572,23732.0,23731.0,1.014116]
[1659248040334,0.22765572,23732.0,23731.0,0.709799]
[1659248040789,0.22765572,23732.0,23731.0,0.631799]
[1659248041213,0.22765572,23732.0,23731.0,0.981799]
[1659248041479,0.22765572,23732.0,23731.0,1.314116]
[1659248041699,0.22765572,23732.0,23731.0,1.72137333]
[1659248041821,0.22765572,23732.0,23731.0,1.77137333]
[1659248042021,0.22755389,23732.0,23731.0,1.77137333]
[1659248042732,0.22755389,23732.0,23731.0,1.69337333]
[1659248042948,0.24354532,23732.0,23731.0,0.210611]
[1659248043157,0.22755389,23732.0,23731.0,0.210611]
[1659248043363,0.52755389,23732.0,23731.0,0.078]
[1659248043572,0.83187089,23732.0,23731.0,0.078]
[1659248043953,0.84786232,23732.0,23731.0,0.078]
[1659248044793,0.84786232,23732.0,23727.0,0.210644]
[1659248045020,0.54354532,23732.0,23728.0,0.40725733]
[1659248045288,0.58754532,23732.0,23729.0,0.02052663]
[1659248046410,0.58754532,23732.0,23727.0,0.210644]
[1659248046603,0.54354532,23732.0,23727.0,0.61790133]
[1659248046831,0.54354532,23732.0,23727.0,0.66790133]
[1659248047277,0.58754532,23732.0,23727.0,0.61790133]
[1659248047969,0.05919957,23728.0,23724.0,0.105313]
[1659248048198,1.11157433,23731.0,23723.0,0.210672]
[1659248048199,0.10919957,23725.0,23723.0,0.210672]
[1659248048438,0.10919957,23725.0,23722.0,0.02811287]
[1659248048439,1.51351657,23724.0,23722.0,0.02811287]
[1659248048667,0.35919957,23723.0,23722.0,0.02811287]
[1659248048900,1.0707739,23723.0,23713.0,0.5937]
[1659248049152,1.0707739,23723.0,23714.0,0.40725733]
[1659248049153,0.40725733,23722.0,23714.0,0.40725733]
[1659248049357,0.3,23721.0,23714.0,0.40725733]
[1659248050062,0.09619957,23723.0,23715.0,0.61797533]
[1659248050315,0.037,23723.0,23717.0,0.45725733]
[1659248050530,0.037,23723.0,23718.0,1.37525033]
[1659248050761,0.8991,23729.0,23719.0,0.40725733]
[1659248050984,0.40725733,23728.0,23719.0,0.50725733]
[1659248051208,0.604317,23727.0,23720.0,0.75725733]
[1659248051433,0.3,23727.0,23721.0,0.40725733]
[1659248051679,0.304317,23726.0,23721.0,0.40725733]
[1659248051864,0.3,23727.0,23721.0,0.40725733]
[1659248052083,0.3,23727.0,23721.0,0.45725733]
[1659248052303,0.3,23727.0,23721.0,0.40725733]
[1659248052955,0.304317,23726.0,23721.0,0.40725733]
[1659248053166,0.3,23727.0,23721.0,0.40725733]
[1659248053392,0.304317,23726.0,23721.0,0.40725733]
[1659248053604,0.344,23727.0,23721.0,0.40725733]
[1659248054253,0.304317,23726.0,23721.0,0.40725733]
[1659248054458,0.344,23727.0,23721.0,0.40725733]
[1659248054692,0.3,23727.0,23721.0,0.50725733]
[1659248054905,0.3,23727.0,23722.0,0.3]
[1659248055349,0.3,23727.0,23718.0,0.210675]
[1659248055350,0.354317,23726.0,23718.0,0.210675]
[1659248055608,0.354317,23726.0,23718.0,0.40725733]
[1659248055609,0.3,23725.0,23718.0,0.40725733]
[1659248055829,0.05,23721.0,23714.0,0.5929]
[1659248056061,0.70725733,23720.0,23711.0,0.31206]
[1659248056284,0.70725733,23720.0,23713.0,0.40725733]
[1659248056788,0.40725733,23719.0,23709.0,0.60782774]
[1659248057011,0.8941,23718.0,23710.0,0.40725733]
[1659248057238,1.30135733,23718.0,23711.0,0.304317]
[1659248057462,1.30135733,23718.0,23711.0,0.40725733]
[1659248057692,1.25135733,23718.0,23711.0,0.40725733]
[1659248057916,0.95135733,23718.0,23711.0,0.40725733]
[1659248058153,0.3,23717.0,23711.0,0.40725733]
[1659248058619,0.016,23719.0,23712.0,0.304317]
[1659248058854,0.3,23722.0,23714.0,0.210727]
[1659248059090,0.5441,23723.0,23715.0,0.79323433]
[1659248059313,0.5441,23723.0,23717.0,0.210712]
[1659248059534,0.5441,23723.0,23718.0,0.40725733]
[1659248059759,0.5441,23723.0,23719.0,0.3]
[1659248059979,0.5441,23723.0,23720.0,0.02052663]
[1659248060205,0.01414653,23722.0,23719.0,0.3]
[1659248060509,0.3961,23724.0,23719.0,0.35]
[1659248060731,0.3961,23724.0,23719.0,0.3]
[1659248060940,0.3961,23724.0,23719.0,0.35]
[1659248061369,0.4021,23724.0,23719.0,0.35]
[1659248062479,0.4021,23724.0,23719.0,0.75725733]
[1659248062713,0.3961,23724.0,23723.0,0.45]
[1659248062925,0.3961,23724.0,23723.0,2.11399096]
[1659248063183,0.3961,23724.0,23723.0,1.34273096]
[1659248063410,0.3961,23724.0,23723.0,1.39273096]
[1659248064505,0.3961,23724.0,23723.0,1.34273096]
[1659248064704,0.3961,23724.0,23723.0,1.39273096]
[1659248065181,0.3961,23724.0,23723.0,0.88547363]
[1659248065403,0.3961,23724.0,23723.0,0.93547363]
[1659248066222,0.3961,23724.0,23723.0,0.88547363]
[1659248066465,0.3961,23724.0,23723.0,0.864947]
[1659248066674,0.3961,23724.0,23723.0,0.56063]
[1659248066873,0.3961,23724.0,23723.0,0.21063]
[1659248067336,0.3961,23724.0,23723.0,0.23115663]
[1659248067557,0.3961,23724.0,23723.0,0.99273096]
[1659248067761,0.3961,23724.0,23723.0,1.76398496]
[1659248068632,0.39600023,23724.0,23723.0,1.79563496]
[1659248069904,0.39600023,23724.0,23723.0,1.84563496]
[1659248071550,0.38600023,23724.0,23723.0,1.84563496]
[1659248071997,0.38600023,23724.0,23723.0,1.79563496]
[1659248072466,0.38600023,23724.0,23723.0,1.36398496]
[1659248073807,0.38600023,23724.0,23723.0,1.76398496]
[1659248077364,0.38600023,23724.0,23723.0,1.79563496]
[1659248077590,0.40199166,23724.0,23723.0,0.71157433]
[1659248077819,0.38600023,23724.0,23723.0,0.73210096]
[1659248078754,0.38600023,23724.0,23723.0,0.78210096]
[1659248078983,0.38600023,23724.0,23723.0,0.42778396]
[1659248079201,0.70199166,23724.0,23717.0,0.994773]
[1659248079433,0.70199166,23724.0,23718.0,0.71157433]
[1659248079434,0.3,23723.0,23718.0,0.71157433]
[1659248079671,0.40199166,23724.0,23719.0,0.71157433]
[1659248079888,0.40199166,23724.0,23720.0,0.71157433]
[1659248080108,0.40199166,23724.0,23721.0,0.40725733]
[1659248080362,0.05919957,23722.0,23718.0,0.04399922]
[1659248080592,0.05919957,23719.0,23715.0,0.01287197]
[1659248080802,1.00385733,23722.0,23715.0,0.40725733]
[1659248081025,0.05,23719.0,23715.0,0.40725733]
[1659248081245,0.01599143,23718.0,23716.0,0.304317]
[1659248081467,0.3,23720.0,23715.0,0.40725733]
[1659248081703,0.3,23720.0,23716.0,0.02052663]
[1659248081934,0.3,23720.0,23715.0,0.40725733]
[1659248082691,0.3,23720.0,23716.0,0.3]
[1659248083103,0.01599143,23719.0,23716.0,0.3]
[1659248084216,0.3,23720.0,23716.0,0.3]
[1659248084429,1.05385733,23722.0,23717.0,0.304317]
[1659248084652,0.3,23721.0,23717.0,0.05]
[1659248084879,0.01599143,23720.0,23717.0,0.05]
[1659248085107,0.01599143,23720.0,23716.0,0.35]
[1659248085986,0.01599143,23720.0,23716.0,0.3]
[1659248086221,0.01599143,23720.0,23709.0,0.898186]
[1659248086222,0.354317,23719.0,23709.0,0.898186]
[1659248086494,0.05,23716.0,23711.0,0.40725733]
[1659248086723,0.3,23718.0,23711.0,0.40725733]
[1659248086724,0.882,23718.0,23711.0,0.40725733]
[1659248086941,1.28925733,23718.0,23711.0,0.40725733]
[1659248087170,0.304317,23717.0,23711.0,0.40725733]
[1659248087394,0.3,23716.0,23711.0,0.40725733]
[1659248089437,0.379,23716.0,23711.0,0.40725733]
[1659248089656,0.079,23716.0,23712.0,0.3]
[1659248089881,0.01599143,23715.0,23713.0,0.02052663]
[1659248090127,0.01599143,23715.0,23712.0,0.3]
[1659248090362,0.079,23716.0,23713.0,0.71157433]
[1659248090596,0.079,23716.0,23714.0,0.76157433]
[1659248090815,0.8688,23721.0,23715.0,0.32484363]
[1659248091050,0.304317,23720.0,23714.0,0.61789491]
[1659248091283,0.3,23719.0,23714.0,0.210748]
[1659248091468,0.70725733,23719.0,23714.0,0.210748]
[1659248091923,0.70725733,23719.0,23714.0,0.260748]
[1659248092135,0.70725733,23719.0,23714.0,0.210748]
[1659248093021,0.304317,23718.0,23714.0,0.210748]
[1659248093266,0.70725733,23719.0,23715.0,0.02052663]
[1659248093478,0.01599143,23718.0,23715.0,0.02052663]
[1659248093940,0.01599143,23718.0,23714.0,0.210748]
[1659248094175,0.01599143,23718.0,23714.0,0.260748]
[1659248094403,0.01599143,23718.0,23714.0,0.210748]
[1659248094623,0.32030843,23718.0,23714.0,0.210748]
[1659248094845,0.01599143,23718.0,23715.0,0.02052663]
[1659248095067,0.01599143,23718.0,23714.0,0.210748]
[1659248095357,0.01599143,23718.0,23714.0,0.260748]
[1659248095571,0.01599143,23718.0,23715.0,0.022]
[1659248096021,0.5688,23721.0,23716.0,0.07052663]
[1659248096258,0.97605733,23721.0,23717.0,0.21072]
[1659248096471,0.01599143,23720.0,23717.0,0.21072]
[1659248097121,0.304317,23719.0,23717.0,0.21072]
[1659248097342,0.5688,23721.0,23717.0,0.21072]
[1659248097560,0.383317,23720.0,23717.0,0.26072]
[1659248097776,0.079,23720.0,23717.0,0.21072]
[1659248098222,0.079,23720.0,23717.0,0.26072]
[1659248098657,0.079,23720.0,23717.0,0.21072]
[1659248098865,0.3,23722.0,23717.0,0.26072]
[1659248099108,0.70725733,23722.0,23717.0,0.21072]
[1659248099325,0.304317,23721.0,23717.0,0.21072]
[1659248099545,0.07999143,23720.0,23717.0,0.21672]
[1659248099763,0.064,23720.0,23717.0,0.23724663]
[1659248100852,0.70725733,23722.0,23717.0,0.23124663]
[1659248101077,0.304317,23721.0,23717.0,0.23124663]
[1659248101293,0.70725733,23722.0,23717.0,0.28124663]
[1659248101517,0.304317,23721.0,23717.0,0.58124663]
[1659248101778,0.78625733,23722.0,23717.0,0.58124663]
[1659248102003,0.304317,23721.0,23717.0,0.58124663]
[1659248102223,0.78625733,23722.0,23717.0,0.58124663]
[1659248102442,0.304317,23721.0,23717.0,0.58124663]
[1659248102687,0.379,23722.0,23717.0,0.58124663]
[1659248102907,0.3,23722.0,23717.0,0.58124663]
[1659248103116,0.3,23722.0,23717.0,0.63124663]
[1659248103369,0.3,23722.0,23717.0,0.58124663]
[1659248103627,0.379,23722.0,23717.0,0.58124663]
[1659248104319,0.379,23722.0,23717.0,0.53124663]
[1659248104749,0.3,23722.0,23717.0,0.58124663]
[1659248105425,0.379,23722.0,23717.0,0.58124663]
[1659248106408,0.379,23722.0,23718.0,0.40725733]
[1659248106618,0.379,23722.0,23719.0,0.3]
[1659248106828,0.379,23722.0,23718.0,0.40725733]
[1659248106829,0.304317,23721.0,23718.0,0.40725733]
[1659248107044,0.3,23722.0,23719.0,0.02052663]
[1659248107258,0.304317,23721.0,23719.0,0.02052663]
[1659248107478,0.079,23721.0,23719.0,0.02052663]
[1659248107916,0.01414653,23720.0,23717.0,0.21072]
[1659248108136,0.01599143,23720.0,23717.0,0.21072]
[1659248109268,0.3,23723.0,23718.0,0.304317]
[1659248109546,0.076,23720.0,23719.0,0.3]
[1659248109778,0.076,23720.0,23718.0,0.3]
[1659248110654,0.09199143,23720.0,23717.0,0.23772]
[1659248110861,0.304317,23719.0,23717.0,0.21072]
[1659248111101,0.01599143,23720.0,23717.0,0.21072]
[1659248111551,0.09199143,23720.0,23717.0,0.53772]
[1659248112254,0.09199143,23720.0,23717.0,0.23772]
[1659248112700,0.01599143,23720.0,23717.0,0.21072]
[1659248113403,0.01593042,23720.0,23717.0,0.21072]
[1659248113628,0.01593042,23720.0,23717.0,0.23772]
[1659248113629,0.09193042,23720.0,23717.0,0.23772]
[1659248114565,0.01506484,23718.0,23717.0,0.25824663]
[1659248114799,0.01506484,23718.0,23717.0,0.21072]
[1659248116584,0.01506484,23718.0,23717.0,0.23124663]
[1659248116811,0.01506484,23718.0,23717.0,0.21079358]
[1659248117036,0.01506484,23718.0,23717.0,0.51511058]
[1659248117255,0.01506484,23718.0,23717.0,0.86511058]
[1659248117729,0.01506484,23718.0,23717.0,0.88563721]
[1659248117945,0.01506484,23718.0,23717.0,0.93963721]
[1659248118187,0.01506484,23718.0,23717.0,0.63532021]
[1659248118485,0.09306484,23718.0,23717.0,0.96963721]
[1659248118674,0.09306484,23718.0,23717.0,0.66532021]
[1659248119122,0.01506484,23718.0,23717.0,0.88563721]
[1659248119345,0.01506484,23718.0,23717.0,0.58132021]
[1659248119569,0.01506484,23718.0,23717.0,0.63563721]
[1659248119805,0.01506484,23718.0,23717.0,0.88563721]
[1659248120267,0.01506484,23718.0,23717.0,0.93563721]
[1659248120504,0.01506484,23718.0,23715.0,0.01241644]
[1659248120505,0.83562,23717.0,23715.0,0.01241644]
[1659248120746,0.83562,23717.0,23709.0,0.211786]
[1659248120747,0.05,23714.0,23709.0,0.211786]
[1659248120981,0.05927223,23710.0,23709.0,0.001]
[1659248121236,0.36362023,23710.0,23709.0,0.001]
[1659248121699,0.07987243,23710.0,23709.0,0.001]
[1659248121927,0.73122043,23710.0,23709.0,0.001]
[1659248122641,0.43122043,23710.0,23709.0,0.001]
[1659248123349,0.07987243,23710.0,23709.0,0.001]
[1659248123568,0.38422043,23710.0,23709.0,0.001]
[1659248124064,0.12787243,23710.0,23709.0,0.001]
[1659248124284,0.43222043,23710.0,23709.0,0.001]
[1659248124522,0.12787243,23710.0,23709.0,0.001]
[1659248124985,0.43222043,23710.0,23709.0,0.001]
[1659248125199,0.38422043,23710.0,23709.0,0.001]
[1659248125442,0.07987243,23710.0,23709.0,0.001]
[1659248125678,0.38422043,23710.0,23709.0,0.001]
[1659248125913,0.43222043,23710.0,23709.0,0.001]
[1659248126192,0.10727223,23710.0,23709.0,0.001]
[1659248126836,0.42668507,23710.0,23709.0,0.001]
[1659248127293,0.37868507,23710.0,23709.0,0.001]
[1659248128007,0.37868507,23710.0,23709.0,0.077]
[1659248129370,0.37868507,23710.0,23709.0,0.001]
[1659248130063,0.45268507,23710.0,23709.0,0.001]
[1659248131176,0.37868507,23710.0,23709.0,0.001]
[1659248132049,0.37868507,23710.0,23709.0,0.077]
[1659248132270,0.07433707,23710.0,23709.0,0.077]
[1659248132497,0.37868507,23710.0,23709.0,0.077]
[1659248133410,0.37868507,23710.0,23709.0,0.001]
[1659248133848,1.37868507,23710.0,23709.0,0.001]
[1659248134300,1.07433707,23710.0,23709.0,0.001]
[1659248134527,1.37868507,23710.0,23709.0,0.077]
[1659248135648,1.37868507,23710.0,23709.0,0.001]
[1659248135883,1.37868507,23710.0,23709.0,0.077]
[1659248136769,1.31941284,23710.0,23709.0,0.077]
[1659248137453,1.31941284,23710.0,23709.0,0.001]
[1659248137923,1.01506484,23710.0,23709.0,0.001]
[1659248138364,1.31941284,23710.0,23709.0,0.077]
[1659248139514,1.31941284,23710.0,23709.0,0.001]
[1659248139963,1.31941284,23710.0,23709.0,0.077]
[1659248140193,1.01506484,23710.0,23709.0,0.077]
[1659248141850,1.01506484,23710.0,23709.0,0.001]
[1659248142081,1.01506484,23710.0,23709.0,0.077]
[1659248142992,1.01506484,23710.0,23709.0,0.127]
[1659248143213,1.01506484,23710.0,23709.0,0.82494419]
[1659248143452,1.01506484,23710.0,23709.0,1.35329219]
[1659248143678,1.01506484,23710.0,23709.0,1.04894419]
[1659248143904,1.01006484,23710.0,23709.0,1.48229219]
[1659248144132,1.03059145,23710.0,23709.0,0.384348]
[1659248144402,1.33501303,23710.0,23709.0,0.08]
[1659248144623,1.01006484,23710.0,23709.0,0.08]
[1659248145303,1.01006484,23710.0,23709.0,0.001]
[1659248146018,1.01006484,23710.0,23709.0,0.042]
[1659248147183,1.01006484,23710.0,23709.0,0.001]
[1659248147840,1.01006484,23710.0,23709.0,0.042]
[1659248149190,1.01006484,23710.0,23709.0,0.001]
[1659248150328,1.01006484,23710.0,23709.0,0.646348]
[1659248150560,1.01006484,23710.0,23709.0,0.042]
[1659248151692,1.01006484,23710.0,23709.0,0.001]
[1659248151916,1.01006484,23710.0,23709.0,0.08]
[1659248152372,1.00506484,23710.0,23709.0,0.08]
[1659248154020,1.00506484,23710.0,23709.0,0.042]
[1659248154238,1.00506484,23710.0,23709.0,0.54925733]
[1659248154477,1.00506484,23710.0,23709.0,1.15360533]
[1659248155373,1.00506484,23710.0,23709.0,1.11260533]
[1659248155819,1.00506484,23710.0,23709.0,1.01260533]
[1659248156059,1.00506484,23710.0,23709.0,0.78825733]
[1659248156302,1.00506484,23710.0,23709.0,0.081]
[1659248156751,1.00506484,23710.0,23709.0,0.48825733]
[1659248157007,1.00506484,23710.0,23709.0,0.87427533]
[1659248157242,1.00506484,23710.0,23709.0,0.79427533]
[1659248157733,1.00506484,23710.0,23709.0,1.19427533]
[1659248157953,1.00506484,23710.0,23709.0,1.27427533]
[1659248159297,1.00506484,23710.0,23709.0,1.19449253]
[1659248160036,1.00506484,23710.0,23709.0,1.27449253]
[1659248160257,1.00506484,23710.0,23709.0,1.28722539]
[1659248161212,1.00006484,23710.0,23709.0,1.20722539]
[1659248161896,1.00006484,23710.0,23709.0,1.25522539]
[1659248163234,1.00006484,23710.0,23709.0,1.20722539]
[1659248164150,1.00006484,23710.0,23709.0,1.25522539]
[1659248165503,1.00006484,23710.0,23709.0,1.20722539]
[1659248165726,0.99506484,23710.0,23709.0,1.20722539]
[1659248169439,0.99506484,23710.0,23709.0,1.17555539]
[1659248169646,0.99506484,23710.0,23709.0,1.22355539]
[1659248170053,0.99506484,23710.0,23709.0,0.82355539]
[1659248170722,0.99506484,23710.0,23709.0,0.87355539]
[1659248170932,0.99506484,23710.0,23709.0,0.77555539]
[1659248171556,0.99506484,23710.0,23709.0,1.17555539]
[1659248171758,0.99506484,23710.0,23709.0,1.22555539]
[1659248172186,0.99006484,23710.0,23709.0,1.22555539]
[1659248173223,0.99006484,23710.0,23709.0,1.17555539]
[1659248174236,0.99006484,23710.0,23709.0,1.22555539]
[1659248175658,0.99006484,23710.0,23709.0,1.17555539]
[1659248175877,0.99006484,23710.0,23709.0,1.22555539]
[1659248176321,0.95006484,23710.0,23709.0,1.22555539]
[1659248177273,0.95006484,23710.0,23709.0,1.17555539]
[1659248177939,0.95006484,23710.0,23709.0,1.22555539]
[1659248178417,0.91445817,23710.0,23709.0,1.22555539]
[1659248179345,0.91445817,23710.0,23709.0,1.17555539]
[1659248180010,0.91445817,23710.0,23709.0,1.22355539]
[1659248180777,0.91445817,23710.0,23709.0,1.25522539]
[1659248181003,0.91445817,23710.0,23709.0,1.335326]
[1659248181224,0.3,23720.0,23709.0,1.287326]
[1659248181444,0.3607,23721.0,23717.0,0.40725733]
[1659248181698,0.3607,23721.0,23718.0,1.236404]
[1659248181699,0.03653063,23720.0,23718.0,1.236404]
[1659248181917,0.3,23722.0,23719.0,0.71160533]
[1659248182137,0.3,23722.0,23720.0,0.75725733]
[1659248182354,0.8411,23724.0,23721.0,0.40725733]
[1659248182583,0.304348,23723.0,23721.0,0.40725733]
[1659248182807,0.03653063,23723.0,23721.0,0.40725733]
[1659248183086,0.3,23722.0,23721.0,0.40725733]
[1659248183303,0.3,23724.0,23721.0,0.40725733]
[1659248185095,0.3,23724.0,23722.0,0.00021708]
[1659248185318,0.3,23724.0,23722.0,0.40725733]
[1659248185760,0.33467316,23724.0,23722.0,0.40725733]
[1659248185991,0.33653063,23724.0,23722.0,0.40725733]
[1659248186448,0.3,23724.0,23722.0,0.40725733]
[1659248186960,0.33467316,23724.0,23722.0,0.40725733]
[1659248187169,0.3607,23725.0,23722.0,0.40725733]
[1659248187170,0.304348,23723.0,23722.0,0.40725733]
[1659248187386,0.6607,23725.0,23722.0,0.40725733]
[1659248187609,0.304348,23724.0,23722.0,0.40725733]
[1659248187829,0.3,23725.0,23722.0,0.40725733]
[1659248188049,0.34087863,23724.0,23722.0,0.40725733]
[1659248188296,0.03653063,23724.0,23722.0,0.40725733]
[1659248189564,0.3,23725.0,23722.0,0.40725733]
[1659248189785,0.304348,23724.0,23722.0,0.40725733]
[1659248189996,0.3,23725.0,23722.0,0.40725733]
[1659248190229,0.304348,23724.0,23722.0,0.40725733]
[1659248190447,0.3,23725.0,23722.0,0.40725733]
[1659248190730,0.5411,23726.0,23722.0,0.40725733]
[1659248190908,0.304348,23725.0,23722.0,0.40725733]
[1659248191135,0.304348,23724.0,23722.0,0.40725733]
[1659248191356,0.5411,23726.0,23722.0,0.50725733]
[1659248191581,0.304348,23725.0,23723.0,0.3]
[1659248191795,0.304348,23724.0,23723.0,0.3]
[1659248192040,0.5411,23726.0,23722.0,0.45725733]
[1659248192276,0.304348,23725.0,23722.0,0.40725733]
[1659248192486,0.5411,23726.0,23722.0,0.40725733]
[1659248192725,0.5411,23726.0,23722.0,0.45725733]
[1659248193182,0.34087863,23725.0,23722.0,0.40725733]
[1659248193414,0.03653063,23725.0,23722.0,0.40725733]
[1659248193641,0.5411,23726.0,23722.0,0.40725733]
[1659248193837,0.5411,23726.0,23723.0,0.3]
[1659248194158,0.304348,23726.0,23723.0,0.70725733]
[1659248194370,0.304348,23725.0,23723.0,0.70725733]
[1659248194655,0.34087863,23726.0,23723.0,0.70725733]
[1659248195085,0.03653063,23726.0,23723.0,0.70725733]
[1659248195298,0.304348,23725.0,23723.0,0.70725733]
[1659248195414,0.03653063,23726.0,23723.0,0.70725733]
[1659248195641,0.304348,23725.0,23723.0,0.40725733]
[1659248199107,0.3,23727.0,23723.0,0.40725733]
[1659248199324,0.30620547,23726.0,23723.0,0.40725733]
[1659248199547,0.304348,23725.0,23723.0,0.40725733]
[1659248200674,0.03653063,23726.0,23723.0,0.40725733]
[1659248200907,0.304348,23725.0,23723.0,0.40725733]
[1659248201993,0.304348,23725.0,23723.0,0.48425733]
[1659248202271,0.304348,23725.0,23723.0,0.53425733]
[1659248202494,0.304348,23725.0,23723.0,0.48425733]
[1659248202933,0.03653063,23726.0,23723.0,0.48425733]
[1659248203150,0.304348,23725.0,23723.0,0.48425733]
[1659248203365,0.304348,23725.0,23723.0,0.45725733]
[1659248203590,0.03653063,23726.0,23723.0,0.40725733]
[1659248203811,0.304348,23725.0,23723.0,0.40725733]
[1659248204034,0.304348,23724.0,23723.0,0.45725733]
[1659248204229,0.3,23727.0,23723.0,0.75725733]
[1659248204466,0.304348,23726.0,23723.0,0.70725733]
[1659248204682,0.304348,23725.0,23723.0,0.70725733]
[1659248204893,0.3,23727.0,23723.0,0.70725733]
[1659248205118,0.304348,23726.0,23723.0,0.70725733]
[1659248205324,0.304348,23725.0,23723.0,0.75725733]
[1659248205543,0.3,23727.0,23724.0,0.3]
[1659248205751,0.304348,23726.0,23723.0,0.80725733]
[1659248206261,0.3,23727.0,23723.0,0.80725733]
[1659248206470,0.304348,23726.0,23723.0,0.40725733]
[1659248206663,0.304348,23725.0,23723.0,0.40725733]
[1659248206886,0.3,23727.0,23723.0,0.40741437]
[1659248207103,0.304348,23726.0,23723.0,0.50741437]
[1659248207301,0.304348,23725.0,23723.0,0.40741437]
[1659248207847,0.03653063,23726.0,23723.0,0.40741437]
[1659248208077,0.3,23727.0,23723.0,0.40741437]
[1659248208208,0.304348,23726.0,23723.0,0.45741437]
[1659248208612,0.3,23727.0,23723.0,0.40741437]
[1659248208873,0.304348,23725.0,23723.0,0.40741437]
[1659248209091,0.304348,23726.0,23723.0,0.40741437]
[1659248209302,0.3,23727.0,23723.0,0.40741437]
[1659248209660,0.304348,23726.0,23723.0,0.40741437]
[1659248209908,0.304348,23725.0,23723.0,0.40741437]
[1659248210082,0.3,23727.0,23723.0,0.45741437]
[1659248210285,0.304348,23726.0,23723.0,0.45741437]
[1659248210583,0.3,23727.0,23723.0,0.40741437]
[1659248210799,0.304348,23726.0,23723.0,0.40741437]
[1659248211032,0.3,23727.0,23723.0,0.40741437]
[1659248211282,0.304297,23726.0,23723.0,0.40741437]
[1659248211501,0.304297,23725.0,23723.0,0.45741437]
[1659248211719,0.3,23727.0,23723.0,0.40741437]
[1659248211941,0.304297,23726.0,23723.0,0.50741437]
[1659248212158,0.3,23727.0,23723.0,0.50741437]
[1659248212384,0.3,23727.0,23724.0,0.3]
[1659248212607,0.304297,23726.0,23724.0,0.3]
[1659248212808,0.304297,23725.0,23724.0,0.3]
[1659248213009,0.3,23727.0,23724.0,0.3]
[1659248213232,0.304297,23726.0,23724.0,0.3]
[1659248213462,0.304297,23725.0,23724.0,0.3]
[1659248213719,0.3,23727.0,23724.0,0.3]
[1659248213951,0.304297,23726.0,23724.0,0.3]
[1659248214170,0.304297,23725.0,23723.0,0.45741437]
[1659248214392,0.03653063,23726.0,23723.0,0.45741437]
[1659248214609,0.3,23727.0,23723.0,0.50741437]
[1659248214840,0.304297,23726.0,23723.0,0.50741437]
[1659248215070,0.3,23727.0,23723.0,0.50741437]
[1659248215335,0.304297,23726.0,23723.0,0.50741437]
[1659248215553,0.304297,23725.0,23723.0,0.40741437]
[1659248215763,0.3,23727.0,23723.0,0.40741437]
[1659248215987,0.34082763,23726.0,23723.0,0.40741437]
[1659248216233,0.03653063,23726.0,23723.0,0.40741437]
[1659248216464,0.3,23727.0,23723.0,0.40741437]
[1659248216693,0.304297,23726.0,23723.0,0.40741437]
[1659248216906,0.3,23727.0,23723.0,0.45741437]
[1659248217144,0.304297,23726.0,23723.0,0.40741437]
[1659248217378,0.3,23727.0,23723.0,0.40741437]
[1659248217655,0.34082763,23726.0,23723.0,0.40725733]
[1659248217886,0.654297,23725.0,23723.0,0.40725733]
[1659248218077,0.304297,23724.0,23723.0,0.40725733]
[1659248218614,0.304297,23725.0,23723.0,0.40725733]
[1659248219358,0.03653063,23726.0,23723.0,0.40725733]
[1659248219687,0.304297,23725.0,23723.0,0.40725733]
[1659248219918,0.304297,23724.0,23723.0,0.40725733]
[1659248220565,0.304297,23725.0,23723.0,0.40725733]
[1659248220775,0.304297,23724.0,23723.0,0.40725733]
[1659248220969,0.304297,23724.0,23723.0,0.40717727]
[1659248221305,0.304297,23725.0,23723.0,0.40717727]
[1659248222119,0.304297,23724.0,23723.0,0.40717727]
[1659248222548,0.304297,23725.0,23723.0,0.40717727]
[1659248222976,0.304297,23724.0,23723.0,0.40717727]
[1659248223242,0.304297,23725.0,23723.0,0.40717727]
[1659248223447,0.304297,23724.0,23723.0,0.40717727]
[1659248223954,0.33653063,23726.0,23723.0,0.40717727]
[1659248224185,0.304297,23725.0,23723.0,0.40717727]
[1659248224569,0.304297,23724.0,23722.0,0.40725733]
[1659248224776,0.304297,23724.0,23718.0,0.0125313]
[1659248224777,0.35856923,23723.0,23718.0,0.0125313]